bitfinex-derivatives/quotes_ETHF0:USTF0_20240901
["timestamp","ask_amount","ask_price","bid_price","bid_amount"]
[1725229316347,3.2078,2450.2,2449.3,3.2078]
[1725229316348,0.39778361,2450.1,2449.3,3.2078]
[1725229316546,3.2078,2450.2,2449.3,3.2078]
[1725229316946,3.2078,2450.2,2448.8,0.20009373]
[1725229316947,3.2078,2450.2,2449.8,3.2078]
[1725229317153,3.2078,2451.2,2450.1,21.13393903]
[1725229317466,3.2078,2451.9,2450.4,3.2078]
[1725229317645,3.2078,2451.9,2450.2,3.91]
[1725229317646,3.2078,2452.1,2451.3,0.40796]
[1725229317849,3.2078,2451.7,2450.5,16.85840143]
[1725229318148,3.91,2452.1,2450.5,16.85840143]
[1725229318149,7.64333936,2452.0,2450.7,13.65060143]
[1725229318348,3.2078,2451.7,2450.7,13.65060143]
[1725229318578,7.64333936,2451.6,2450.9,0.00611995]
[1725229318853,0.00611995,2451.3,2450.9,0.00611995]
[1725229319063,0.00611995,2451.3,2450.9,4.08611995]
[1725229319259,0.00611995,2451.3,2450.9,0.00611995]
[1725229319554,4.32547339,2451.2,2450.9,0.00611995]
[1725229319761,7.1178,2451.0,2450.0,0.2]
[1725229319947,3.2078,2450.1,2450.0,0.2]
[1725229320354,11.88362968,2450.1,2450.0,0.2]
[1725229320556,4.59422968,2450.1,2450.0,0.2]
[1725229320759,3.2078,2450.7,2450.0,4.2816]
[1725229320955,3.2078,2450.1,2450.0,0.2]
[1725229321360,17.60756,2450.1,2450.0,0.2]
[1725229321560,17.60756,2450.1,2448.2,4.3008]
[1725229321561,3.2078,2449.8,2448.0,0.40851]
[1725229321863,3.2078,2448.9,2448.3,3.2078]
[1725229322054,3.2078,2448.9,2448.4,5.38238079]
[1725229322250,4.51659319,2448.8,2448.4,5.38238079]
[1725229322470,4.52271314,2448.8,2448.4,3.2078]
[1725229322774,3.2078,2450.5,2448.7,4.3188]
[1725229322952,3.2078,2450.5,2448.9,3.2078]
[1725229323169,3.2078,2450.1,2448.9,3.2078]
[1725229323460,3.2078,2449.8,2449.0,8.56071674]
[1725229323771,3.2078,2451.2,2450.1,0.40816]
[1725229324063,3.2078,2451.4,2450.4,3.2078]
[1725229324268,4.46116057,2451.1,2450.2,8.50334078]
[1725229324469,0.00611995,2450.9,2450.4,0.00611995]
[1725229324759,0.00611995,2450.9,2450.5,13.91957363]
[1725229324957,0.00611995,2450.9,2450.6,0.40808]
[1725229325156,4.58575404,2450.8,2450.4,0.00611995]
[1725229325355,3.2078,2450.5,2450.4,0.00611995]
[1725229325657,0.00611995,2450.9,2450.4,0.00611995]
[1725229325861,4.58691215,2450.5,2450.4,0.00611995]
[1725229326260,3.2078,2450.7,2450.4,0.00611995]
[1725229326463,0.00611995,2450.9,2450.4,0.00611995]
[1725229326658,3.2078,2450.7,2450.4,0.00611995]
[1725229326853,4.69218987,2450.6,2450.4,0.00611995]
[1725229327060,4.0808,2450.6,2450.4,0.00611995]
[1725229327257,4.69218987,2450.6,2450.4,0.00611995]
[1725229327759,3.2078,2450.7,2450.4,0.00611995]
[1725229328151,0.00611995,2450.9,2450.4,4.08691995]
[1725229328352,3.2078,2450.5,2450.4,0.00611995]
[1725229328550,4.26604416,2450.6,2450.4,0.00611995]
[1725229328861,7.82133828,2450.5,2450.4,0.00611995]
[1725229329062,3.2078,2450.5,2450.4,0.00611995]
[1725229329263,3.2078,2450.8,2450.4,0.00611995]
[1725229329468,7.2886,2450.8,2450.4,0.00611995]
[1725229329656,8.22943828,2450.5,2448.3,3.2078]
[1725229329960,8.22943828,2450.5,2447.8,3.2078]
[1725229329961,3.2078,2449.1,2447.8,3.2078]
[1725229330278,4.25979644,2449.0,2448.0,0.4085]
[1725229330454,3.2078,2448.5,2447.9,8.37324135]
[1725229330654,3.2078,2448.9,2447.5,0.3832]
[1725229330867,0.00611995,2448.4,2447.5,0.3832]
[1725229331066,0.00611995,2448.4,2447.9,0.40852]
[1725229331455,3.2078,2448.0,2447.5,0.3832]
[1725229331655,3.2078,2448.0,2447.2,3.5997]
[1725229331970,4.6052953,2447.9,2447.6,8.49727865]
[1725229332156,0.00611995,2448.4,2447.5,11.70507865]
[1725229332356,0.00611995,2448.4,2447.7,5.42578573]
[1725229332557,0.00611995,2448.4,2447.6,8.49727865]
[1725229332558,7.8130953,2448.3,2447.6,8.49727865]
[1725229332959,7.8130953,2448.3,2447.5,3.2078]
[1725229333163,3.2078,2447.8,2447.2,3.5997]
[1725229333362,4.6052953,2448.3,2447.2,3.5997]
[1725229333363,7.8130953,2448.3,2447.2,3.5997]
[1725229333663,3.91,2447.8,2446.6,3.2078]
[1725229333862,3.2078,2447.9,2445.9,3.2078]
[1725229333863,3.2078,2446.9,2445.9,3.2078]
[1725229334061,3.91,2447.0,2445.9,3.2078]
[1725229334267,3.2078,2446.1,2445.2,3.2078]
[1725229334465,3.2078,2445.5,2444.4,3.2078]
[1725229334664,7.1178,2445.8,2444.4,3.2078]
[1725229334960,0.00613271,2445.9,2445.0,3.2078]
[1725229335162,3.91,2449.2,2445.0,3.2078]
[1725229335163,3.2078,2446.7,2445.6,3.2078]
[1725229335466,11.76011669,2447.7,2446.2,3.2078]
[1725229335656,11.76011669,2447.7,2446.8,3.2078]
[1725229335657,4.64231669,2447.7,2446.8,3.2078]
[1725229335862,3.2078,2447.4,2446.3,8.52344065]
[1725229336063,4.62900051,2447.6,2446.9,8.78715672]
[1725229336366,3.91,2447.9,2446.8,3.2078]
[1725229336367,4.62900051,2447.7,2446.8,3.2078]
[1725229336565,2.71e-06,2447.1,2447.0,5.68674532]
[1725229336864,7.1178,2448.7,2447.3,0.40862]
[1725229337061,3.91,2448.7,2447.5,3.2078]
[1725229337262,7.84697664,2448.6,2447.6,3.61636]
[1725229337468,3.2078,2448.3,2447.2,13.67166455]
[1725229337669,3.91,2448.3,2447.2,3.2078]
[1725229337971,0.00613271,2448.0,2447.5,0.00613271]
[1725229338357,3.61639,2447.6,2446.5,3.2078]
[1725229338563,3.2078,2447.1,2446.1,3.2078]
[1725229338762,4.45480179,2447.5,2446.6,0.40873]
[1725229338963,3.2078,2447.9,2446.6,3.2078]
[1725229339276,3.2078,2447.9,2446.9,3.2078]
[1725229339464,3.2078,2447.9,2447.0,0.07507681]
[1725229339660,3.2078,2447.9,2447.2,0.00613271]
[1725229340270,3.2078,2447.9,2447.3,4.0856]
[1725229340463,3.2078,2447.9,2447.3,13.94920601]
[1725229340657,3.2078,2447.9,2447.4,4.0856]
[1725229340859,3.2078,2447.9,2447.6,0.40858]
[1725229341069,3.2078,2449.0,2447.7,0.07505121]
[1725229341369,7.53027863,2449.6,2448.2,3.2078]
[1725229341568,7.53027863,2449.6,2448.5,3.2078]
[1725229341773,4.56694533,2449.4,2448.6,0.4084]
[1725229342068,3.2078,2449.2,2448.3,0.40846]
[1725229342270,3.2078,2449.2,2448.7,0.40838]
[1725229342566,3.2078,2449.2,2447.7,0.4088]
[1725229342567,7.77474533,2449.1,2448.8,0.00613271]
[1725229342961,3.2078,2449.1,2448.8,0.00613271]
[1725229343361,0.00613271,2449.2,2448.9,4.0832]
[1725229343562,0.00613271,2449.2,2449.0,0.40833]
[1725229343770,0.00613271,2449.2,2449.0,4.49154]
[1725229343964,0.00613271,2449.2,2448.8,0.00613271]
[1725229344362,0.00613271,2449.2,2448.8,4.08933271]
[1725229344568,0.00613271,2449.2,2448.8,0.00613271]
[1725229344780,0.00613271,2449.2,2449.1,0.40833]
[1725229344963,1.58594,2451.8,2448.9,17.78200965]
[1725229344964,3.2078,2450.0,2448.9,17.78200965]
[1725229345168,3.2078,2450.3,2449.2,0.40831]
[1725229345369,3.2078,2450.0,2449.0,8.34309321]
[1725229345575,3.2078,2449.9,2449.1,0.07500421]
[1725229345769,3.2078,2449.9,2449.3,0.40829]
[1725229345970,0.00613271,2449.8,2449.4,0.00613271]
[1725229346173,3.2078,2449.6,2449.4,0.00613271]
[1725229346776,8.68896392,2449.5,2449.4,0.00613271]
[1725229347078,8.68896392,2449.5,2447.6,4.93144]
[1725229347079,0.40832,2449.2,2448.1,3.61629]
[1725229347265,3.2078,2448.7,2448.1,3.61629]
[1725229347470,0.40832,2449.2,2448.1,3.61629]
[1725229347471,3.2078,2449.0,2448.2,8.46405392]
[1725229347777,3.2078,2449.4,2448.4,0.40843]
[1725229347978,3.2078,2449.4,2448.7,0.00613271]
[1725229348179,4.46238133,2449.3,2448.7,0.00613271]
[1725229348481,7.75237037,2449.5,2448.8,13.79700906]
[1725229348482,3.2078,2449.5,2448.8,13.79700906]
[1725229348681,3.2078,2449.5,2449.2,0.40831]
[1725229348885,3.2078,2449.5,2449.2,4.0824]
[1725229349377,3.2078,2449.5,2449.3,4.49068]
[1725229349685,3.2078,2449.5,2449.3,4.0824]
[1725229349977,3.2078,2449.5,2448.7,0.40183271]
[1725229350183,3.2078,2449.5,2449.0,0.40834]
[1725229350480,3.2078,2449.5,2448.8,17.64350883]
[1725229350669,3.2078,2449.5,2449.1,8.37505104]
[1725229350873,3.2078,2449.5,2448.7,0.40183271]
[1725229351073,3.61606,2449.6,2448.7,0.40183271]
[1725229351276,3.2078,2449.6,2448.7,0.40183271]
[1725229351474,3.2078,2449.2,2448.7,0.40183271]
[1725229351672,3.2078,2449.2,2448.7,0.00613271]
[1725229351877,4.20902374,2449.1,2448.7,0.00613271]
[1725229352078,3.2078,2449.2,2448.7,0.41452271]
[1725229352669,3.2078,2449.2,2448.7,0.00613271]
[1725229352871,3.91,2449.6,2448.7,0.00613271]
[1725229352872,4.43109507,2449.1,2448.7,0.00613271]
[1725229353180,3.2078,2449.1,2448.7,0.00613271]
[1725229353378,4.43109507,2449.2,2448.7,0.00613271]
[1725229353579,3.2078,2449.1,2448.7,0.00613271]
[1725229353778,3.61618,2448.8,2448.7,0.00613271]
[1725229353983,0.0906231,2449.0,2447.8,3.6213]
[1725229354276,3.2078,2449.0,2448.2,3.2078]
[1725229354475,4.46397682,2449.1,2448.3,3.2078]
[1725229354678,3.2078,2449.3,2448.3,8.60225366]
[1725229354872,0.00613271,2449.0,2448.7,3.2078]
[1725229355069,0.00613271,2449.0,2448.9,0.40836]
[1725229355291,3.2078,2449.7,2448.9,3.2078]
[1725229355586,3.2078,2450.2,2449.2,3.2078]
[1725229355773,3.2078,2450.2,2449.0,0.3925]
[1725229355972,4.51867104,2450.1,2449.3,3.2078]
[1725229356180,4.51867104,2450.1,2449.5,0.40826]
[1725229356181,0.00613271,2449.9,2449.5,0.40826]
[1725229356383,0.00613271,2449.9,2449.6,0.40825]
[1725229356583,0.00613271,2449.9,2449.4,3.2078]
[1725229356882,0.00613271,2449.9,2449.4,3.61607]
[1725229357079,0.00613271,2449.9,2449.4,3.2078]
[1725229357482,3.21393271,2449.9,2449.2,0.40831]
[1725229357683,3.62213271,2449.9,2449.1,0.40832]
[1725229357984,3.62213271,2449.9,2447.9,3.6166]
[1725229357985,0.40835,2449.0,2447.9,3.6166]
[1725229358175,3.91,2449.3,2448.6,0.41453271]
[1725229358372,3.2078,2449.2,2448.6,0.00613271]
[1725229358573,4.50196794,2449.1,2448.6,0.00613271]
[1725229358780,4.50196794,2449.2,2448.6,0.00613271]
[1725229358991,7.1178,2449.3,2448.6,0.00613271]
[1725229358992,0.40834,2449.1,2448.6,0.00613271]
[1725229359173,3.91,2449.3,2448.6,0.00613271]
[1725229359174,3.2078,2448.7,2448.6,0.00613271]
[1725229359568,0.40835,2449.0,2448.6,0.00613271]
[1725229359781,0.40834,2449.1,2448.6,0.00613271]
[1725229359981,4.4337025,2448.9,2448.6,0.41454271]
[1725229360181,7.1178,2449.3,2448.6,0.41454271]
[1725229360378,7.1178,2449.3,2448.9,0.40835]
[1725229360379,3.2078,2449.3,2448.9,0.40835]
[1725229360579,3.2078,2449.3,2448.6,0.00613271]
[1725229360783,3.91,2449.7,2448.6,0.00613271]
[1725229360784,3.6162,2448.7,2448.6,0.00613271]
[1725229361182,12.21284726,2448.7,2448.6,0.00613271]
[1725229361385,18.21284726,2448.7,2448.6,0.00613271]
[1725229361788,17.80444726,2448.7,2447.1,0.4088]
[1725229361983,3.2078,2448.1,2446.9,0.4088]
[1725229362187,3.2078,2448.1,2447.0,0.07506495]
[1725229362382,3.2078,2448.1,2447.5,0.40858]
[1725229362580,3.2078,2448.1,2447.3,0.40862]
[1725229362782,3.2078,2447.8,2447.5,0.00613271]
[1725229362983,0.00613271,2447.9,2447.5,0.41473271]
[1725229363183,0.00613271,2447.9,2447.5,0.00613271]
[1725229363386,2.71e-06,2447.9,2447.8,0.40855]
[1725229363577,2.71e-06,2447.9,2447.6,18.02306431]
[1725229363784,2.71e-06,2447.9,2447.5,0.00613271]
[1725229364083,3.2078,2447.8,2447.5,0.00613271]
[1725229364288,0.40857,2447.7,2447.5,0.00613271]
[1725229364491,4.0856,2447.7,2447.5,0.00613271]
[1725229364692,4.25461971,2447.6,2447.5,0.00613271]
[1725229364990,0.40865,2447.2,2446.2,0.3904]
[1725229365195,0.40865,2447.2,2445.8,3.6166]
[1725229365196,3.2078,2446.9,2445.8,3.6166]
[1725229365384,3.2078,2446.2,2445.8,3.2078]
[1725229365580,3.2078,2446.2,2445.3,0.3904]
[1725229365581,3.2078,2446.2,2445.7,0.40889]
[1725229365785,3.2078,2446.2,2445.4,3.2078]
[1725229365991,0.00613271,2446.0,2445.7,0.40888]
[1725229366198,0.00613271,2446.0,2445.9,0.40886]
[1725229366389,0.00613271,2446.0,2445.9,4.088]
[1725229366586,0.00613271,2446.0,2445.9,10.49686]
[1725229367085,0.00183988,2446.0,2445.9,10.49686]
[1725229367282,3.2078,2446.9,2445.9,10.16310527]
[1725229367490,3.2078,2446.9,2445.6,0.00613271]
[1725229367698,4.51924022,2446.8,2446.7,0.40873]
[1725229367988,3.2078,2447.2,2446.7,0.40873]
[1725229367989,3.2078,2447.2,2446.7,6.0]
[1725229368195,3.21393271,2447.2,2447.1,0.40866]
[1725229368585,3.21393271,2447.2,2447.1,4.0864]
[1725229368792,3.21393271,2447.2,2447.1,4.49506]
[1725229369294,2.71e-06,2447.2,2447.1,10.49506]
[1725229369690,2.71e-06,2447.2,2447.1,10.97893217]
[1725229370000,2.71e-06,2447.2,2447.1,25.9035613]
[1725229370178,2.71e-06,2447.2,2447.1,26.78062025]
[1725229370782,2.71e-06,2447.2,2447.1,25.75896025]
[1725229370984,2.71e-06,2447.2,2447.1,10.49506]
[1725229371491,2.71e-06,2447.2,2447.1,15.8028767]
[1725229371794,2.71e-06,2447.2,2447.1,10.57012757]
[1725229371988,2.71e-06,2447.2,2447.1,15.97907223]
[1725229372290,2.71e-06,2447.2,2447.1,17.00073223]
[1725229372494,2.71e-06,2447.2,2447.1,25.35888494]
[1725229372688,2.71e-06,2447.2,2447.1,15.97907223]
[1725229373088,2.71e-06,2447.2,2447.1,24.71920809]
[1725229373292,2.71e-06,2447.2,2447.1,10.57012757]
[1725229373692,2.71e-06,2447.2,2447.1,10.49506]
[1725229374192,2.71e-06,2447.2,2447.1,15.9190326]
[1725229374405,2.71e-06,2447.2,2447.1,16.40289483]
[1725229374692,2.71e-06,2447.2,2447.1,10.97892223]
[1725229374993,2.71e-06,2447.2,2447.1,4.0864]
[1725229375394,2.71e-06,2447.2,2447.1,10.49506]
[1725229375599,2.71e-06,2447.2,2447.1,4.0864]
[1725229375895,2.71e-06,2447.2,2446.9,0.00613271]
[1725229376092,2.71e-06,2447.2,2446.9,0.41482271]
[1725229376394,2.71e-06,2447.2,2446.9,0.00613271]
[1725229376595,3.20780271,2447.2,2446.9,0.00613271]
[1725229376901,3.20780271,2447.2,2447.1,0.40866]
[1725229377094,3.20780271,2447.2,2446.9,0.00613271]
[1725229377797,4.35872216,2447.1,2446.9,0.00613271]
[1725229378293,3.20780271,2447.2,2446.9,0.00613271]
[1725229378498,3.20780271,2447.2,2447.1,0.40866]
[1725229378998,3.20780271,2447.2,2446.9,0.00613271]
[1725229379402,4.34173144,2447.1,2446.9,0.00613271]
[1725229379613,4.49508,2447.0,2446.9,0.00429012]
[1725229380096,4.49508,2447.0,2446.1,0.40883]
[1725229380097,0.40871,2446.9,2446.1,0.40883]
[1725229380309,3.2078,2446.4,2446.1,0.40883]
[1725229380491,3.2078,2446.4,2446.2,0.40881]
[1725229380688,3.2078,2446.4,2445.8,11.88339926]
[1725229381007,0.40876,2446.6,2445.9,0.41498271]
[1725229381190,3.2078,2446.1,2445.9,0.00613271]
[1725229381592,7.70464,2446.1,2445.9,0.00613271]
[1725229381785,3.2078,2446.1,2445.9,0.00613271]
[1725229382188,3.2078,2446.1,2446.0,0.40885]
[1725229382390,3.91000271,2447.2,2446.0,0.40885]
[1725229382391,3.2078,2447.1,2446.6,0.40874]
[1725229382586,2.71e-06,2447.2,2446.2,1.02204]
[1725229382786,2.71e-06,2447.2,2446.4,3.2078]
[1725229382996,2.71e-06,2447.2,2446.8,0.4087]
[1725229383194,3.2078,2447.1,2446.7,0.40872]
[1725229383398,3.2078,2447.1,2446.5,3.2078]
[1725229383399,2.71e-06,2447.2,2446.5,3.2078]
[1725229383586,2.71e-06,2447.2,2447.1,3.61646]
[1725229383789,2.71e-06,2447.2,2447.1,4.49506]
[1725229384295,3.20780271,2447.2,2446.7,0.40871]
[1725229384494,2.71e-06,2447.2,2446.3,3.2078]
[1725229384799,4.44344517,2447.2,2446.7,0.40872]
[1725229384989,3.2078,2447.1,2446.4,8.57025536]
[1725229385194,3.2078,2446.7,2446.0,0.40883]
[1725229385393,3.2078,2446.8,2446.0,0.40885]
[1725229385699,3.2078,2446.8,2445.9,3.62523271]
[1725229385700,3.2078,2446.4,2445.9,0.00613271]
[1725229385895,7.1178,2446.4,2445.9,0.00613271]
[1725229386096,3.2078,2446.1,2445.9,0.00613271]
[1725229386603,7.2958,2446.1,2445.9,0.00613271]
[1725229386805,3.2078,2446.1,2445.9,0.00613271]
[1725229387007,0.20231249,2447.1,2446.2,0.4088]
[1725229387008,3.2078,2446.6,2446.2,0.4088]
[1725229387210,3.2078,2446.6,2446.5,0.40876]
[1725229387493,3.2078,2446.6,2445.9,0.00613271]
[1725229387703,3.2078,2446.6,2446.2,0.40881]
[1725229387888,3.2078,2446.6,2446.0,0.40884]
[1725229388085,3.2078,2446.6,2445.9,0.00613271]
[1725229388298,3.2078,2446.6,2446.0,3.2078]
[1725229388505,3.2078,2446.6,2446.5,0.40876]
[1725229388795,3.2078,2447.0,2446.3,3.2078]
[1725229389000,3.2078,2447.0,2446.6,0.40874]
[1725229389185,3.2078,2447.0,2446.3,3.2078]
[1725229389392,3.2078,2447.0,2446.4,5.20065162]
[1725229389700,3.2078,2447.0,2446.9,0.4087]
[1725229389897,2.71e-06,2447.2,2447.0,0.40867]
[1725229390100,2.71e-06,2447.2,2447.1,0.40866]
[1725229390400,2.71e-06,2447.2,2447.1,12.06645784]
[1725229390599,2.71e-06,2447.2,2447.1,20.41634186]
[1725229390800,3.2078,2448.6,2448.0,0.4085]
[1725229390994,3.2078,2448.6,2447.7,3.2078]
[1725229391190,3.2078,2449.0,2448.0,3.2078]
[1725229391393,1.02049,2450.0,2449.1,0.40832]
[1725229391394,3.2078,2449.7,2449.1,0.40832]
[1725229391594,3.2078,2449.7,2448.9,3.2078]
[1725229391794,0.00613271,2449.5,2449.2,0.4083]
[1725229392000,0.00613271,2449.5,2449.3,0.40829]
[1725229392303,0.00613271,2449.5,2449.1,3.21393271]
[1725229392492,0.00613271,2449.5,2449.2,0.40831]
[1725229392694,0.00613271,2449.5,2449.3,0.40829]
[1725229392898,0.00613271,2449.5,2449.4,0.40828]
[1725229393390,0.00613271,2449.5,2449.4,4.0824]
[1725229393596,0.00613271,2449.5,2449.4,4.49068]
[1725229394503,0.00613271,2449.5,2449.4,10.49068]
[1725229394703,0.00613271,2449.5,2449.4,4.49068]
[1725229395100,0.00613271,2449.5,2449.4,10.49068]
[1725229395491,0.00613271,2449.5,2449.4,4.49068]
[1725229395900,0.00613271,2449.5,2449.4,10.49068]
[1725229396095,0.00613271,2449.5,2449.4,4.0824]
[1725229396297,0.00613271,2449.5,2449.4,10.49068]
[1725229396900,0.00613271,2449.5,2449.1,0.00613271]
[1725229397612,3.2078,2449.4,2449.1,0.00613271]
[1725229398104,0.00613271,2449.5,2449.1,0.00613271]
[1725229398499,7.1178,2449.3,2449.1,0.00613271]
[1725229398706,4.0832,2449.2,2448.1,3.6166]
[1725229398999,3.2078,2449.0,2448.1,3.6166]
[1725229399202,4.48743689,2449.2,2448.5,0.40843]
[1725229399410,3.2078,2449.3,2448.6,0.40841]
[1725229399600,3.2078,2449.3,2448.4,3.2078]
[1725229399601,3.2078,2449.3,2448.7,0.00613271]
[1725229400110,0.00613271,2449.5,2448.7,0.00613271]
[1725229400292,0.00613271,2449.5,2448.7,3.21393271]
[1725229400491,0.00613271,2449.5,2448.9,0.40836]
[1725229400800,0.00613271,2449.5,2448.8,3.2078]
[1725229401103,3.2078,2449.4,2448.8,3.2078]
[1725229401297,3.2078,2449.4,2448.8,3.61616]
[1725229401495,3.2078,2449.4,2448.8,3.2078]
[1725229402006,3.2078,2449.4,2448.7,0.00613271]
[1725229402206,0.00613271,2449.5,2448.7,0.00613271]
[1725229402207,3.2078,2449.1,2448.7,0.00613271]
[1725229402503,3.2078,2448.8,2448.7,0.00613271]
[1725229402704,3.61618,2448.8,2448.7,0.00613271]
[1725229402890,7.70018,2448.8,2448.7,0.00613271]
[1725229403095,7.2918,2448.8,2448.7,0.00613271]
[1725229403305,3.2078,2448.8,2448.7,0.00613271]
[1725229403518,7.2918,2448.8,2448.7,0.00613271]
[1725229403818,3.2078,2449.4,2448.7,4.09013271]
[1725229404021,0.00613271,2449.5,2448.7,4.09013271]
[1725229404022,0.00613271,2449.5,2449.1,0.40832]
[1725229404211,0.00613271,2449.5,2448.8,3.2078]
[1725229404411,0.00613271,2449.5,2449.3,0.40828]
[1725229404716,0.00613271,2449.5,2449.3,0.40829]
[1725229404917,0.00613271,2449.5,2449.4,0.40828]
[1725229405714,3.2078,2450.4,2449.4,18.94488957]
[1725229405918,3.2078,2450.4,2449.5,0.3728]
[1725229406222,3.2078,2450.1,2449.4,0.4088]
[1725229406411,0.40816,2450.1,2449.4,0.4088]
[1725229406611,3.2078,2449.8,2449.1,0.40832]
[1725229406814,3.2078,2449.8,2449.0,3.2078]
[1725229406815,3.21393271,2449.9,2449.4,0.41441271]
[1725229407007,3.21393271,2449.9,2449.4,0.00613271]
[1725229407615,3.2078,2449.6,2449.4,0.00613271]
[1725229407921,0.00613271,2449.9,2449.4,0.00613271]
[1725229408112,0.00613271,2449.9,2449.8,0.40821]
[1725229408317,0.00613271,2449.9,2449.8,10.48981]
[1725229408713,0.00613271,2449.9,2449.8,4.0816]
[1725229409323,0.00613271,2449.9,2449.4,0.00613271]
[1725229409523,0.00613271,2449.9,2449.8,0.40821]
[1725229409721,0.00613271,2449.9,2449.8,8.5372613]
[1725229409908,0.00613271,2449.9,2449.5,8.5372613]
[1725229410107,0.00613271,2449.9,2449.4,0.00613271]
[1725229410412,0.00613271,2449.9,2449.6,9.13966198]
[1725229410619,0.00613271,2449.9,2449.8,3.61601]
[1725229411121,0.00613271,2449.9,2449.8,7.69761]
[1725229411620,0.00613271,2449.9,2449.8,4.0816]
[1725229412015,3.21393271,2449.9,2449.4,0.00613271]
[1725229412712,3.21393271,2449.9,2449.6,0.40823]
[1725229412919,0.00613271,2449.9,2449.7,0.40823]
[1725229413213,0.00613271,2449.9,2449.6,3.2078]
[1725229413922,0.00613271,2449.9,2449.4,0.00613271]
[1725229414314,0.00613271,2449.9,2449.7,0.40822]
[1725229414631,0.00613271,2449.9,2449.8,4.0816]
[1725229415121,0.00613271,2449.9,2449.4,0.00613271]
[1725229415328,3.2078,2449.8,2449.4,0.00613271]
[1725229415717,3.2078,2449.6,2449.4,0.00613271]
[1725229415918,0.00613271,2449.9,2449.4,0.00613271]
[1725229416118,3.2078,2449.6,2449.4,0.00613271]
[1725229416720,0.00613271,2449.9,2449.5,4.0824]
[1725229416921,0.00613271,2449.9,2449.8,0.40821]
[1725229417120,0.00613271,2449.9,2449.6,0.40824]
[1725229417323,0.00613271,2449.9,2449.4,0.00613271]
[1725229417826,0.00613271,2449.9,2449.4,0.41441271]
[1725229418019,0.00613271,2449.9,2449.4,0.00613271]
[1725229418217,0.00613271,2449.9,2449.6,0.40824]
[1725229418423,0.00613271,2449.9,2449.8,0.40821]
[1725229418623,0.00613271,2449.9,2449.5,4.0824]
[1725229418826,0.00613271,2449.9,2449.8,0.40821]
[1725229419325,0.00613271,2449.9,2449.8,10.48981]
[1725229420726,0.00613271,2449.9,2449.8,4.48981]
[1725229420923,0.00613271,2449.9,2449.8,4.0816]
[1725229421231,0.00613271,2449.9,2449.8,10.48981]
[1725229421423,0.00613271,2449.9,2449.8,4.48981]
[1725229421623,0.00613271,2449.9,2449.8,10.48981]
[1725229421822,0.00613271,2449.9,2449.4,0.00613271]
[1725229422223,0.00613271,2449.9,2449.8,0.40821]
[1725229422726,3.2078,2450.3,2450.2,0.40815]
[1725229422931,3.2078,2451.0,2449.9,7.9916]
[1725229423224,3.2078,2450.7,2449.9,0.40818]
[1725229423432,3.2078,2450.9,2450.0,8.78644114]
[1725229423622,3.2078,2450.6,2450.0,0.40818]
[1725229423931,3.21393271,2450.5,2449.6,0.8024]
[1725229424233,0.00613271,2450.5,2449.7,5.22855587]
[1725229424424,0.00613271,2450.5,2450.3,0.40812]
[1725229424635,0.00613271,2450.5,2449.7,17.12893745]
[1725229424924,0.00613271,2450.5,2449.7,3.2078]
[1725229425226,3.2078,2450.2,2449.7,3.2078]
[1725229425429,3.2078,2449.9,2449.4,0.00613271]
[1725229425625,0.00613271,2450.5,2449.4,0.00613271]
[1725229425828,3.2078,2450.1,2449.4,0.00613271]
[1725229426136,7.7848538,2450.4,2449.4,0.00613271]
[1725229426332,3.2078,2450.4,2449.4,0.00613271]
[1725229426627,3.2078,2450.4,2449.5,5.35888895]
[1725229426929,3.2078,2450.4,2449.4,0.00613271]
[1725229426930,3.21393271,2450.5,2449.4,3.21393271]
[1725229427117,3.21393271,2450.5,2449.5,5.74654406]
[1725229427324,3.2078,2450.2,2449.7,0.40822]
[1725229427630,3.2078,2450.2,2449.8,0.40821]
[1725229427838,3.2078,2450.2,2449.9,0.40819]
[1725229428022,3.21393271,2450.5,2449.9,0.40819]
[1725229428336,3.21393271,2450.5,2449.5,0.3999]
[1725229428337,0.00613271,2450.5,2449.5,0.3999]
[1725229428520,0.00613271,2450.5,2449.6,0.07498781]
[1725229428730,0.00613271,2450.5,2449.7,3.2078]
[1725229428933,0.00613271,2450.5,2450.2,0.40813]
[1725229429130,0.00613271,2450.5,2449.8,0.07498781]
[1725229429131,0.00613271,2450.5,2450.3,0.40813]
[1725229429337,0.00613271,2450.5,2450.4,0.40811]
[1725229429526,0.00613271,2450.5,2450.4,4.48891]
[1725229430036,0.00613271,2450.5,2450.4,4.0808]
[1725229430732,0.00613271,2450.5,2450.4,4.48891]
[1725229431138,0.00613271,2450.5,2450.4,10.89771]
[1725229431729,0.00613271,2450.5,2450.4,4.89771]
[1725229431933,0.00613271,2450.5,2450.4,10.89771]
[1725229432835,0.00613271,2450.5,2450.4,4.89771]
[1725229433441,0.00613271,2450.5,2450.4,4.48891]
[1725229434931,0.00613271,2450.5,2450.4,4.0808]
[1725229435130,0.00613271,2450.5,2450.4,4.48891]
[1725229435347,0.00613271,2450.5,2450.4,4.0808]
[1725229436243,0.00613271,2450.5,2450.4,10.48891]
[1725229437245,3.2078,2450.8,2450.7,0.40806]
[1725229437649,3.2078,2450.8,2450.7,4.48806]
[1725229439143,0.00613271,2451.0,2450.9,0.40803]
[1725229439349,3.21393271,2451.0,2450.7,0.00612008]
[1725229439650,3.21393271,2451.0,2450.9,0.40803]
[1725229440039,3.21393271,2451.0,2450.9,4.48803]
[1725229440536,0.00613271,2451.0,2450.9,4.48803]
[1725229441342,0.00613271,2451.0,2450.7,0.00612008]
[1725229441343,4.49415271,2451.0,2450.7,0.00612008]
[1725229441549,3.2078,2450.8,2450.7,0.00612008]
[1725229441844,7.2878,2450.8,2450.7,0.00612008]
[1725229442239,13.2878,2450.8,2449.6,0.7903]
[1725229442442,3.2078,2450.1,2449.6,0.7903]
[1725229442648,3.2078,2450.1,2449.6,0.80893]
[1725229442838,3.2078,2450.1,2449.6,0.80894]
[1725229443250,3.2078,2450.1,2449.7,0.40823]
[1725229443443,3.2078,2450.1,2449.6,0.40682008]
[1725229443647,3.2078,2449.8,2449.6,0.00612008]
[1725229444849,4.0824,2449.7,2449.6,0.00612008]
[1725229445043,4.49063,2449.7,2449.6,0.00612008]
[1725229445247,10.49063,2449.7,2449.6,0.00612008]
[1725229445450,14.81672609,2449.7,2448.5,0.4088]
[1725229445654,3.2078,2448.9,2448.4,0.40844]